[Event "Titled Tuesday Blitz December 27 Early 2022"]
[White "Perez Ponsa, Federico"]
[Black "Aghasiyev, Kamal"]
[WhiteFideId "117927"]
[BlackFideId "13402854"]
[WhiteElo "2532"]
[BlackElo "2441"]
[Result "1-0"]
[Round "03"]
[TimeControl "180+2"]
[Date "2022.12.27"]
[WhiteClock "0:00:07"]
[BlackClock "0:00:11"]

1. d4 {[%clk 0:02:55]}  d5 {[%clk 0:02:57]} 2. c4 {[%clk 0:02:55]}  e6 {[%clk 0:02:56]} 3. Nc3 {[%clk 0:02:55]}  Nf6 {[%clk 0:02:56]} 4. Nf3 {[%clk 0:02:53]}  Be7 {[%clk 0:02:56]} 5. Bf4 {[%clk 0:02:53]}  O-O {[%clk 0:02:55]} 6. e3 {[%clk 0:02:53]}  b6 {[%clk 0:02:56]} 7. Rc1 {[%clk 0:02:51]}  Ba6 {[%clk 0:02:40]} 8. Ne5 {[%clk 0:02:49]}  dxc4 {[%clk 0:02:26]} 9. Qf3 {[%clk 0:02:48]}  Nd5 {[%clk 0:02:24]} 10. Bxc4 {[%clk 0:02:43]}  Bxc4 {[%clk 0:02:21]} 11. Nxc4 {[%clk 0:02:44]}  Nc6 {[%clk 0:02:17]} 12. Nxd5 {[%clk 0:02:39]}  exd5 {[%clk 0:02:17]} 13. Nd2 {[%clk 0:02:24]}  Qd7 {[%clk 0:02:13]} 14. O-O {[%clk 0:02:24]}  Rac8 {[%clk 0:02:11]} 15. a3 {[%clk 0:02:13]}  Nd8 {[%clk 0:02:05]} 16. b4 {[%clk 0:02:12]}  Ne6 {[%clk 0:02:04]} 17. Be5 {[%clk 0:02:12]}  a5 {[%clk 0:01:39]} 18. bxa5 {[%clk 0:02:08]}  Bxa3 {[%clk 0:01:38]} 19. Ra1 {[%clk 0:02:01]}  Bb4 {[%clk 0:01:38]} 20. Nb3 {[%clk 0:02:02]}  bxa5 {[%clk 0:01:34]} 21. Nxa5 {[%clk 0:02:03]}  c5 {[%clk 0:01:20]} 22. dxc5 {[%clk 0:02:00]}  Rxc5 {[%clk 0:00:59]} 23. Nb3 {[%clk 0:01:58]}  Rc4 {[%clk 0:00:59]} 24. Rfd1 {[%clk 0:01:54]}  Bc3 {[%clk 0:00:58]} 25. Rxd5 {[%clk 0:01:41]}  Qb7 {[%clk 0:00:54]} 26. Na5 {[%clk 0:01:37]}  Bxa5 {[%clk 0:00:47]} 27. Rdxa5 {[%clk 0:01:33]}  Qxf3 {[%clk 0:00:45]} 28. gxf3 {[%clk 0:01:34]}  Rfc8 {[%clk 0:00:44]} 29. Kg2 {[%clk 0:01:32]}  h6 {[%clk 0:00:43]} 30. Ra7 {[%clk 0:01:29]}  g5 {[%clk 0:00:40]} 31. Re7 {[%clk 0:01:27]}  R4c5 {[%clk 0:00:40]} 32. Bd6 {[%clk 0:01:26]}  R5c6 {[%clk 0:00:39]} 33. Bg3 {[%clk 0:01:27]}  Nf8 {[%clk 0:00:33]} 34. Raa7 {[%clk 0:01:24]}  Rf6 {[%clk 0:00:33]} 35. Be5 {[%clk 0:01:16]}  Re6 {[%clk 0:00:33]} 36. Rxe6 {[%clk 0:00:55]}  Nxe6 {[%clk 0:00:33]} 37. h4 {[%clk 0:00:55]}  Rc2 {[%clk 0:00:28]} 38. h5 {[%clk 0:00:53]}  Rc8 {[%clk 0:00:26]} 39. Kg3 {[%clk 0:00:51]}  Ng7 {[%clk 0:00:26]} 40. Kg4 {[%clk 0:00:31]}  f5+ {[%clk 0:00:26]} 41. Kh3 {[%clk 0:00:31]}  Nxh5 {[%clk 0:00:26]} 42. e4 {[%clk 0:00:31]}  Re8 {[%clk 0:00:24]} 43. Ra5 {[%clk 0:00:30]}  Ng7 {[%clk 0:00:17]} 44. Bxg7 {[%clk 0:00:27]}  Kxg7 {[%clk 0:00:17]} 45. Rxf5 {[%clk 0:00:27]}  Kg6 {[%clk 0:00:16]} 46. Rd5 {[%clk 0:00:24]}  Re6 {[%clk 0:00:16]} 47. Kg3 {[%clk 0:00:21]}  Rf6 {[%clk 0:00:16]} 48. Rd8 {[%clk 0:00:18]}  Ra6 {[%clk 0:00:15]} 49. Rg8+ {[%clk 0:00:18]}  Kf6 {[%clk 0:00:14]} 50. Rf8+ {[%clk 0:00:18]}  Kg6 {[%clk 0:00:14]} 51. f4 {[%clk 0:00:18]}  Ra3+ {[%clk 0:00:12]} 52. f3 {[%clk 0:00:18]}  gxf4+ {[%clk 0:00:10]} 53. Kxf4 {[%clk 0:00:16]}  h5 {[%clk 0:00:10]} 54. Rg8+ {[%clk 0:00:15]}  Kf6 {[%clk 0:00:10]} 55. e5+ {[%clk 0:00:12]}  Kf7 {[%clk 0:00:11]} 56. Rg5 {[%clk 0:00:12]}  h4 {[%clk 0:00:11]} 57. Rh5 {[%clk 0:00:11]}  h3 {[%clk 0:00:10]} 58. Rxh3 {[%clk 0:00:10]}  Kg6 {[%clk 0:00:10]} 59. Rg3+ {[%clk 0:00:10]}  Kf7 {[%clk 0:00:11]} 60. Rg1 {[%clk 0:00:07]}  Ke6 {[%clk 0:00:10]} 61. Rg6+ {[%clk 0:00:07]}  Kf7 {[%clk 0:00:10]} 62. Rf6+ {[%clk 0:00:07]}  Ke7 {[%clk 0:00:11]} 63. Ke4 {[%clk 0:00:08]}  Ra4+ {[%clk 0:00:11]} 64. Kf5 {[%clk 0:00:08]}  Ra5 {[%clk 0:00:12]} 65. f4 {[%clk 0:00:09]}  Ra4 {[%clk 0:00:12]} 66. Rh6 {[%clk 0:00:09]}  Kf7 {[%clk 0:00:12]} 67. Rh7+ {[%clk 0:00:10]}  Kg8 {[%clk 0:00:12]} 68. Rb7 {[%clk 0:00:10]}  Kf8 {[%clk 0:00:12]} 69. Kf6 {[%clk 0:00:10]}  Ke8 {[%clk 0:00:13]} 70. f5 {[%clk 0:00:08]}  Ra8 {[%clk 0:00:11]} 71. Rh7 {[%clk 0:00:07]}  Ra1 {[%clk 0:00:10]} 72. e6 {[%clk 0:00:06]}  Kd8 {[%clk 0:00:09]} 73. Rh8+ {[%clk 0:00:07]}  Kc7 {[%clk 0:00:10]} 74. e7 {[%clk 0:00:08]}  Ra5 {[%clk 0:00:10]} 75. e8=Q {[%clk 0:00:08]}  Ra6+ {[%clk 0:00:10]} 76. Kf7 {[%clk 0:00:08]}  Ra7 {[%clk 0:00:11]} 77. Qb8+ {[%clk 0:00:07]} 1-0


[Site "https://www.chess.com"]

[Event "Titled Tuesday Blitz December 27 Early 2022"]
[White "Piesik, Piotr"]
[Black "Srebrnic, Marko"]
[WhiteFideId "1136194"]
[BlackFideId "14603616"]
[WhiteElo "2426"]
[BlackElo "2366"]
[Result "0-1"]
[Round "03"]
[TimeControl "180+2"]
[Date "2022.12.27"]
[WhiteClock "0:00:02"]
[BlackClock "0:00:08"]

1. Nf3 {[%clk 0:02:57]}  Nf6 {[%clk 0:02:59]} 2. g3 {[%clk 0:02:58]}  g6 {[%clk 0:02:59]} 3. Bg2 {[%clk 0:02:59]}  Bg7 {[%clk 0:03:00]} 4. O-O {[%clk 0:02:59]}  O-O {[%clk 0:03:01]} 5. d4 {[%clk 0:03:00]}  d6 {[%clk 0:03:01]} 6. Nbd2 {[%clk 0:03:00]}  Nbd7 {[%clk 0:03:02]} 7. e4 {[%clk 0:03:00]}  e5 {[%clk 0:03:03]} 8. dxe5 {[%clk 0:03:01]}  Nxe5 {[%clk 0:03:02]} 9. Nxe5 {[%clk 0:03:01]}  dxe5 {[%clk 0:03:02]} 10. Qe2 {[%clk 0:03:02]}  c6 {[%clk 0:03:02]} 11. a4 {[%clk 0:03:02]}  a5 {[%clk 0:03:02]} 12. b3 {[%clk 0:03:02]}  Re8 {[%clk 0:03:01]} 13. Bb2 {[%clk 0:03:02]}  Qc7 {[%clk 0:02:58]} 14. Rfd1 {[%clk 0:03:01]}  Be6 {[%clk 0:02:58]} 15. Nc4 {[%clk 0:03:01]}  Nd7 {[%clk 0:02:57]} 16. Bf1 {[%clk 0:02:59]}  Bf8 {[%clk 0:02:55]} 17. Ne3 {[%clk 0:02:54]}  Bc5 {[%clk 0:02:50]} 18. Rd2 {[%clk 0:02:50]}  f6 {[%clk 0:02:44]} 19. Rad1 {[%clk 0:02:49]}  Rad8 {[%clk 0:02:44]} 20. Qf3 {[%clk 0:02:41]}  Kg7 {[%clk 0:02:37]} 21. h4 {[%clk 0:02:34]}  h5 {[%clk 0:02:33]} 22. Kh2 {[%clk 0:02:33]}  Nf8 {[%clk 0:02:27]} 23. Bh3 {[%clk 0:02:28]}  Bxh3 {[%clk 0:02:25]} 24. Kxh3 {[%clk 0:02:28]}  Ne6 {[%clk 0:02:22]} 25. Nc4 {[%clk 0:02:20]}  Rxd2 {[%clk 0:02:14]} 26. Rxd2 {[%clk 0:02:19]}  Bd4 {[%clk 0:02:09]} 27. Ba3 {[%clk 0:02:11]}  Rd8 {[%clk 0:02:02]} 28. Kg2 {[%clk 0:02:05]}  b5 {[%clk 0:01:56]} 29. Ne3 {[%clk 0:02:00]}  b4 {[%clk 0:01:40]} 30. Bc1 {[%clk 0:01:59]}  Bxe3 {[%clk 0:01:39]} 31. Qxe3 {[%clk 0:01:52]}  c5 {[%clk 0:01:23]} 32. Qe2 {[%clk 0:01:49]}  Rxd2 {[%clk 0:01:16]} 33. Bxd2 {[%clk 0:01:48]}  Nd4 {[%clk 0:01:14]} 34. Qc4 {[%clk 0:01:45]}  Qc6 {[%clk 0:01:10]} 35. f3 {[%clk 0:01:45]}  f5 {[%clk 0:01:06]} 36. Qd3 {[%clk 0:01:36]}  fxe4 {[%clk 0:01:00]} 37. fxe4 {[%clk 0:01:36]}  Qd7 {[%clk 0:00:46]} 38. c3 {[%clk 0:01:31]}  bxc3 {[%clk 0:00:44]} 39. Bxc3 {[%clk 0:01:31]}  Qb7 {[%clk 0:00:40]} 40. Bxa5 {[%clk 0:01:30]}  Nxb3 {[%clk 0:00:39]} 41. Bc3 {[%clk 0:01:23]}  Nd4 {[%clk 0:00:39]} 42. a5 {[%clk 0:01:20]}  Qb3 {[%clk 0:00:36]} 43. a6 {[%clk 0:01:04]}  Qa2+ {[%clk 0:00:34]} 44. Bd2 {[%clk 0:00:55]}  c4 {[%clk 0:00:29]} 45. Qe3 {[%clk 0:00:54]}  Qxa6 {[%clk 0:00:28]} 46. Qh6+ {[%clk 0:00:54]}  Kg8 {[%clk 0:00:28]} 47. Bb4 {[%clk 0:00:49]}  Qf6 {[%clk 0:00:24]} 48. Kg1 {[%clk 0:00:39]}  c3 {[%clk 0:00:19]} 49. Qe3 {[%clk 0:00:25]}  c2 {[%clk 0:00:19]} 50. Ba3 {[%clk 0:00:23]}  Qa6 {[%clk 0:00:19]} 51. Kf2 {[%clk 0:00:18]}  Qc4 {[%clk 0:00:16]} 52. Ke1 {[%clk 0:00:15]}  Qf7 {[%clk 0:00:15]} 53. Kd2 {[%clk 0:00:14]}  Qa2 {[%clk 0:00:15]} 54. Bc1 {[%clk 0:00:12]}  Qa5+ {[%clk 0:00:15]} 55. Qc3 {[%clk 0:00:11]}  Qa6 {[%clk 0:00:12]} 56. Qd3 {[%clk 0:00:10]}  Qf6 {[%clk 0:00:12]} 57. Qe3 {[%clk 0:00:09]}  Qf1 {[%clk 0:00:12]} 58. Bb2 {[%clk 0:00:08]}  Qd1+ {[%clk 0:00:12]} 59. Kc3 {[%clk 0:00:09]}  Ne2+ {[%clk 0:00:11]} 60. Kb4 {[%clk 0:00:08]}  c1=Q {[%clk 0:00:12]} 61. Bxc1 {[%clk 0:00:08]}  Nxc1 {[%clk 0:00:13]} 62. Qg5 {[%clk 0:00:07]}  Qd4+ {[%clk 0:00:10]} 63. Kb5 {[%clk 0:00:06]}  Qd7+ {[%clk 0:00:10]} 64. Kb6 {[%clk 0:00:04]}  Qd6+ {[%clk 0:00:09]} 65. Kb7 {[%clk 0:00:04]}  Nd3 {[%clk 0:00:08]} 66. g4 {[%clk 0:00:03]}  Nc5+ {[%clk 0:00:09]} 67. Ka8 {[%clk 0:00:02]}  Qa6+ {[%clk 0:00:08]} 0-1


[Site "https://www.chess.com"]

[Event "Titled Tuesday Blitz December 27 Early 2022"]
[White "Postnikov, Daniil"]
[Black "Peatman, Carter"]
[WhiteFideId "4166329"]
[BlackFideId "2096480"]
[WhiteElo "2360"]
[BlackElo "1998"]
[Result "1-0"]
[Round "03"]
[TimeControl "180+2"]
[Date "2022.12.27"]
[WhiteClock "0:00:24"]
[BlackClock "0:00:03"]

1. e4 {[%clk 0:03:00]}  e5 {[%clk 0:02:57]} 2. f4 {[%clk 0:02:59]}  d5 {[%clk 0:02:54]} 3. exd5 {[%clk 0:02:59]}  exf4 {[%clk 0:02:54]} 4. Nf3 {[%clk 0:02:59]}  Nf6 {[%clk 0:02:54]} 5. c4 {[%clk 0:02:58]}  c6 {[%clk 0:02:55]} 6. d4 {[%clk 0:02:57]}  cxd5 {[%clk 0:02:54]} 7. c5 {[%clk 0:02:57]}  Nc6 {[%clk 0:02:49]} 8. Nc3 {[%clk 0:02:56]}  Ne4 {[%clk 0:02:43]} 9. Bxf4 {[%clk 0:02:53]}  a6 {[%clk 0:02:30]} 10. Bd3 {[%clk 0:02:51]}  Nxc3 {[%clk 0:02:13]} 11. bxc3 {[%clk 0:02:51]}  Be7 {[%clk 0:02:14]} 12. O-O {[%clk 0:02:27]}  O-O {[%clk 0:02:14]} 13. Ne5 {[%clk 0:02:27]}  Bf6 {[%clk 0:01:51]} 14. Nxc6 {[%clk 0:02:12]}  bxc6 {[%clk 0:01:52]} 15. Qh5 {[%clk 0:01:57]}  g6 {[%clk 0:01:45]} 16. Qf3 {[%clk 0:01:57]}  Bg7 {[%clk 0:01:41]} 17. Bd6 {[%clk 0:01:56]}  Be6 {[%clk 0:01:21]} 18. Bxf8 {[%clk 0:01:55]}  Bxf8 {[%clk 0:01:20]} 19. Rab1 {[%clk 0:01:56]}  Qa5 {[%clk 0:01:18]} 20. Be2 {[%clk 0:01:26]}  Be7 {[%clk 0:01:05]} 21. Rb7 {[%clk 0:01:24]}  Re8 {[%clk 0:01:05]} 22. Ra7 {[%clk 0:01:17]}  Qxa2 {[%clk 0:01:02]} 23. Rxa6 {[%clk 0:01:15]}  Qd2 {[%clk 0:00:55]} 24. Rxc6 {[%clk 0:01:13]}  Rf8 {[%clk 0:00:35]} 25. g4 {[%clk 0:00:45]}  Qg5 {[%clk 0:00:27]} 26. h3 {[%clk 0:00:42]}  h5 {[%clk 0:00:27]} 27. Kf2 {[%clk 0:00:33]}  Qh4+ {[%clk 0:00:14]} 28. Kg2 {[%clk 0:00:33]}  Qg5 {[%clk 0:00:12]} 29. Qg3 {[%clk 0:00:32]}  hxg4 {[%clk 0:00:11]} 30. Bxg4 {[%clk 0:00:30]}  Bxg4 {[%clk 0:00:07]} 31. hxg4 {[%clk 0:00:30]}  Qd2+ {[%clk 0:00:08]} 32. Rf2 {[%clk 0:00:30]}  Qg5 {[%clk 0:00:06]} 33. Qf4 {[%clk 0:00:30]}  Qh4 {[%clk 0:00:05]} 34. Rc7 {[%clk 0:00:30]}  Bg5 {[%clk 0:00:04]} 35. Qf3 {[%clk 0:00:28]}  Bh6 {[%clk 0:00:02]} 36. Rxf7 {[%clk 0:00:27]}  Qd8 {[%clk 0:00:01]} 37. Rxf8+ {[%clk 0:00:26]}  Bxf8 {[%clk 0:00:02]} 38. c6 {[%clk 0:00:26]}  Kh8 {[%clk 0:00:03]} 39. Qxf8+ {[%clk 0:00:24]} 1-0


[Site "https://www.chess.com"]

[Event "Titled Tuesday Blitz December 27 Early 2022"]
[White "Rahman, Adel"]
[Black "Zherebtsova, Alexandra"]
[WhiteFideId "14204177"]
[BlackFideId "24129518"]
[WhiteElo "2273"]
[BlackElo "2155"]
[Result "0-1"]
[Round "03"]
[TimeControl "180+2"]
[Date "2022.12.27"]
[WhiteClock "0:00:10"]
[BlackClock "0:00:09"]

1. e4 {[%clk 0:03:00]}  e5 {[%clk 0:02:58]} 2. Nf3 {[%clk 0:03:01]}  Nc6 {[%clk 0:02:58]} 3. Nc3 {[%clk 0:02:59]}  Nf6 {[%clk 0:02:57]} 4. d4 {[%clk 0:02:59]}  exd4 {[%clk 0:02:56]} 5. Nd5 {[%clk 0:02:59]}  Be7 {[%clk 0:02:46]} 6. Bc4 {[%clk 0:02:59]}  Nxd5 {[%clk 0:02:43]} 7. exd5 {[%clk 0:02:55]}  Na5 {[%clk 0:02:43]} 8. Be2 {[%clk 0:02:50]}  c5 {[%clk 0:02:42]} 9. dxc6 {[%clk 0:02:43]}  dxc6 {[%clk 0:02:37]} 10. Nxd4 {[%clk 0:02:41]}  O-O {[%clk 0:02:31]} 11. O-O {[%clk 0:02:41]}  c5 {[%clk 0:02:28]} 12. Nf3 {[%clk 0:02:31]}  b6 {[%clk 0:02:22]} 13. Bf4 {[%clk 0:02:25]}  Bb7 {[%clk 0:02:18]} 14. Re1 {[%clk 0:02:25]}  Bf6 {[%clk 0:02:17]} 15. c3 {[%clk 0:02:21]}  Qxd1 {[%clk 0:02:11]} 16. Raxd1 {[%clk 0:02:20]}  Rad8 {[%clk 0:02:11]} 17. Ne5 {[%clk 0:02:18]}  Rxd1 {[%clk 0:02:00]} 18. Bxd1 {[%clk 0:01:56]}  Re8 {[%clk 0:01:45]} 19. f3 {[%clk 0:01:01]}  Nc4 {[%clk 0:01:00]} 20. Ba4 {[%clk 0:00:51]}  Re7 {[%clk 0:00:48]} 21. Rd1 {[%clk 0:00:50]}  Rxe5 {[%clk 0:00:39]} 22. Bxe5 {[%clk 0:00:49]}  Nxe5 {[%clk 0:00:36]} 23. f4 {[%clk 0:00:48]}  Nc4 {[%clk 0:00:25]} 24. Rd7 {[%clk 0:00:45]}  Be4 {[%clk 0:00:22]} 25. Bb3 {[%clk 0:00:44]}  Nxb2 {[%clk 0:00:18]} 26. Bxf7+ {[%clk 0:00:41]}  Kf8 {[%clk 0:00:18]} 27. Be6 {[%clk 0:00:41]}  a5 {[%clk 0:00:15]} 28. c4 {[%clk 0:00:40]}  Bd4+ {[%clk 0:00:15]} 29. Kh1 {[%clk 0:00:34]}  Bb1 {[%clk 0:00:15]} 30. Rf7+ {[%clk 0:00:31]}  Ke8 {[%clk 0:00:15]} 31. Rb7 {[%clk 0:00:31]}  Bxa2 {[%clk 0:00:15]} 32. Rxb6 {[%clk 0:00:29]}  Bxc4 {[%clk 0:00:14]} 33. Bf5 {[%clk 0:00:19]}  a4 {[%clk 0:00:12]} 34. Rb8+ {[%clk 0:00:19]}  Ke7 {[%clk 0:00:12]} 35. Ra8 {[%clk 0:00:19]}  Bb3 {[%clk 0:00:10]} 36. Bxh7 {[%clk 0:00:19]}  Nc4 {[%clk 0:00:11]} 37. Ra7+ {[%clk 0:00:17]}  Kd6 {[%clk 0:00:10]} 38. Be4 {[%clk 0:00:16]}  a3 {[%clk 0:00:10]} 39. g4 {[%clk 0:00:14]}  a2 {[%clk 0:00:10]} 40. h4 {[%clk 0:00:13]}  a1=Q+ {[%clk 0:00:11]} 41. Rxa1 {[%clk 0:00:13]}  Bxa1 {[%clk 0:00:11]} 42. Kg2 {[%clk 0:00:14]}  Nd2 {[%clk 0:00:11]} 43. Bg6 {[%clk 0:00:13]}  Bd5+ {[%clk 0:00:12]} 44. Kh3 {[%clk 0:00:12]}  Bd4 {[%clk 0:00:11]} 45. g5 {[%clk 0:00:11]}  Be4 {[%clk 0:00:11]} 46. Bf7 {[%clk 0:00:11]}  c4 {[%clk 0:00:10]} 47. Kg4 {[%clk 0:00:11]}  c3 {[%clk 0:00:10]} 48. Bb3 {[%clk 0:00:10]}  Nxb3 {[%clk 0:00:10]} 49. h5 {[%clk 0:00:10]}  c2 {[%clk 0:00:10]} 50. h6 {[%clk 0:00:10]}  gxh6 {[%clk 0:00:10]} 51. gxh6 {[%clk 0:00:10]}  c1=Q {[%clk 0:00:10]} 52. Kg5 {[%clk 0:00:09]}  Qg1+ {[%clk 0:00:10]} 53. Kh4 {[%clk 0:00:09]}  Bf2+ {[%clk 0:00:10]} 54. Kh5 {[%clk 0:00:10]}  Qg6# {[%clk 0:00:09]} 0-1


[Site "https://www.chess.com"]

[Event "Titled Tuesday Blitz December 27 Early 2022"]
[White "Rohith Krishna S"]
[Black "Martinez Alcantara, Jose Eduardo"]
[WhiteFideId "46617051"]
[BlackFideId "3805662"]
[WhiteElo "2385"]
[BlackElo "2619"]
[Result "0-1"]
[Round "03"]
[TimeControl "180+2"]
[Date "2022.12.27"]
[WhiteClock "0:00:17"]
[BlackClock "0:00:08"]

1. Nf3 {[%clk 0:03:00]}  d5 {[%clk 0:02:59]} 2. d4 {[%clk 0:03:01]}  Nf6 {[%clk 0:02:59]} 3. c4 {[%clk 0:03:01]}  e6 {[%clk 0:03:00]} 4. Nc3 {[%clk 0:03:02]}  a6 {[%clk 0:03:01]} 5. Bg5 {[%clk 0:03:02]}  Be7 {[%clk 0:02:55]} 6. cxd5 {[%clk 0:03:00]}  exd5 {[%clk 0:02:56]} 7. e3 {[%clk 0:03:00]}  Be6 {[%clk 0:02:57]} 8. Bd3 {[%clk 0:02:57]}  Nbd7 {[%clk 0:02:57]} 9. O-O {[%clk 0:02:57]}  h6 {[%clk 0:02:57]} 10. Bh4 {[%clk 0:02:57]}  O-O {[%clk 0:02:57]} 11. Rc1 {[%clk 0:02:55]}  Rc8 {[%clk 0:02:54]} 12. a3 {[%clk 0:02:48]}  c6 {[%clk 0:02:47]} 13. Re1 {[%clk 0:02:35]}  Re8 {[%clk 0:02:43]} 14. Na4 {[%clk 0:02:29]}  Bd6 {[%clk 0:02:29]} 15. Nc5 {[%clk 0:02:24]}  Nxc5 {[%clk 0:02:29]} 16. dxc5 {[%clk 0:02:21]}  Bc7 {[%clk 0:02:30]} 17. Nd4 {[%clk 0:02:05]}  Bd7 {[%clk 0:02:30]} 18. b4 {[%clk 0:01:57]}  Qe7 {[%clk 0:02:27]} 19. a4 {[%clk 0:01:54]}  Be5 {[%clk 0:02:12]} 20. Bb1 {[%clk 0:01:37]}  Bb8 {[%clk 0:01:59]} 21. f3 {[%clk 0:01:29]}  Qe5 {[%clk 0:01:49]} 22. Bg3 {[%clk 0:01:28]}  Qe7 {[%clk 0:01:49]} 23. Bh4 {[%clk 0:01:28]}  Bc7 {[%clk 0:01:46]} 24. Bd3 {[%clk 0:01:26]}  Qe5 {[%clk 0:01:41]} 25. Bg3 {[%clk 0:01:25]}  Qe7 {[%clk 0:01:41]} 26. Bh4 {[%clk 0:01:25]}  Ra8 {[%clk 0:01:35]} 27. Bb1 {[%clk 0:01:24]}  Be5 {[%clk 0:01:30]} 28. Qd3 {[%clk 0:01:22]}  g5 {[%clk 0:01:23]} 29. Bf2 {[%clk 0:01:20]}  Bc7 {[%clk 0:01:17]} 30. Nf5 {[%clk 0:01:10]}  Bxf5 {[%clk 0:01:16]} 31. Qxf5 {[%clk 0:01:11]}  Qe6 {[%clk 0:01:14]} 32. Qd3 {[%clk 0:01:09]}  Rad8 {[%clk 0:01:11]} 33. b5 {[%clk 0:01:08]}  axb5 {[%clk 0:01:10]} 34. axb5 {[%clk 0:01:09]}  Be5 {[%clk 0:01:09]} 35. f4 {[%clk 0:01:04]}  Bb8 {[%clk 0:01:04]} 36. fxg5 {[%clk 0:00:54]}  hxg5 {[%clk 0:01:04]} 37. Rf1 {[%clk 0:00:54]}  Ne4 {[%clk 0:01:03]} 38. Be1 {[%clk 0:00:55]}  Qh6 {[%clk 0:00:52]} 39. g3 {[%clk 0:00:55]}  Qe6 {[%clk 0:00:49]} 40. Ba2 {[%clk 0:00:47]}  Qe5 {[%clk 0:00:45]} 41. Rb1 {[%clk 0:00:46]}  Re7 {[%clk 0:00:43]} 42. Qd4 {[%clk 0:00:42]}  Rde8 {[%clk 0:00:42]} 43. Bb3 {[%clk 0:00:37]}  Qe6 {[%clk 0:00:37]} 44. bxc6 {[%clk 0:00:30]}  bxc6 {[%clk 0:00:37]} 45. Ba4 {[%clk 0:00:31]}  Ba7 {[%clk 0:00:34]} 46. Bb4 {[%clk 0:00:28]}  Rb8 {[%clk 0:00:32]} 47. Ba3 {[%clk 0:00:28]}  Reb7 {[%clk 0:00:30]} 48. Rxb7 {[%clk 0:00:25]}  Rxb7 {[%clk 0:00:31]} 49. Bc2 {[%clk 0:00:25]}  Re7 {[%clk 0:00:25]} 50. Bb2 {[%clk 0:00:23]}  Qh6 {[%clk 0:00:20]} 51. Qa4 {[%clk 0:00:15]}  g4 {[%clk 0:00:17]} 52. Bxe4 {[%clk 0:00:14]}  Qxe3+ {[%clk 0:00:17]} 53. Rf2 {[%clk 0:00:15]}  Qe1+ {[%clk 0:00:08]} 54. Rf1 {[%clk 0:00:14]}  Bxc5+ {[%clk 0:00:06]} 55. Bd4 {[%clk 0:00:14]}  Bxd4+ {[%clk 0:00:05]} 56. Qxd4 {[%clk 0:00:15]}  Qxe4 {[%clk 0:00:06]} 57. Qf6 {[%clk 0:00:16]}  Qe3+ {[%clk 0:00:06]} 58. Rf2 {[%clk 0:00:15]}  d4 {[%clk 0:00:04]} 59. Qf5 {[%clk 0:00:15]}  Qe1+ {[%clk 0:00:04]} 60. Rf1 {[%clk 0:00:15]}  Qe3+ {[%clk 0:00:04]} 61. Rf2 {[%clk 0:00:16]}  Qe4 {[%clk 0:00:04]} 62. Qg5+ {[%clk 0:00:16]}  Kf8 {[%clk 0:00:04]} 63. Qh6+ {[%clk 0:00:16]}  Ke8 {[%clk 0:00:05]} 64. Qd6 {[%clk 0:00:17]}  Qe1+ {[%clk 0:00:04]} 65. Rf1 {[%clk 0:00:17]}  Qe3+ {[%clk 0:00:04]} 66. Rf2 {[%clk 0:00:18]}  f5 {[%clk 0:00:04]} 67. Qxc6+ {[%clk 0:00:18]}  Rd7 {[%clk 0:00:03]} 68. Qg6+ {[%clk 0:00:18]}  Kd8 {[%clk 0:00:04]} 69. Qxf5 {[%clk 0:00:18]}  d3 {[%clk 0:00:04]} 70. Qa5+ {[%clk 0:00:18]}  Kc8 {[%clk 0:00:04]} 71. Qa6+ {[%clk 0:00:19]}  Kd8 {[%clk 0:00:04]} 72. Kg2 {[%clk 0:00:19]}  Qe4+ {[%clk 0:00:04]} 73. Kg1 {[%clk 0:00:19]}  Qe3 {[%clk 0:00:03]} 74. Kg2 {[%clk 0:00:19]}  Qe4+ {[%clk 0:00:04]} 75. Kg1 {[%clk 0:00:20]}  Qd4 {[%clk 0:00:05]} 76. Qa8+ {[%clk 0:00:18]}  Kc7 {[%clk 0:00:04]} 77. Qa5+ {[%clk 0:00:18]}  Kc6 {[%clk 0:00:03]} 78. Qa6+ {[%clk 0:00:18]}  Kc5 {[%clk 0:00:04]} 79. Qa5+ {[%clk 0:00:18]}  Kc4 {[%clk 0:00:05]} 80. Kg2 {[%clk 0:00:18]}  Qd5+ {[%clk 0:00:05]} 81. Qxd5+ {[%clk 0:00:18]}  Rxd5 {[%clk 0:00:06]} 82. Rf1 {[%clk 0:00:16]}  d2 {[%clk 0:00:06]} 83. h3 {[%clk 0:00:14]}  gxh3+ {[%clk 0:00:06]} 84. Kxh3 {[%clk 0:00:15]}  d1=Q {[%clk 0:00:06]} 85. Rxd1 {[%clk 0:00:15]}  Rxd1 {[%clk 0:00:07]} 86. Kg4 {[%clk 0:00:16]}  Kd5 {[%clk 0:00:08]} 87. Kf5 {[%clk 0:00:17]}  Rf1+ {[%clk 0:00:08]} 0-1


[Site "https://www.chess.com"]

[Event "Titled Tuesday Blitz December 27 Early 2022"]
[White "Roque Sola, Gisela"]
[Black "Vasques, Antonio Pedro Freixial"]
[WhiteFideId "5120241"]
[BlackFideId "1908332"]
[WhiteElo "2061"]
[BlackElo "2214"]
[Result "0-1"]
[Round "03"]
[TimeControl "180+2"]
[Date "2022.12.27"]
[WhiteClock "0:00:02"]
[BlackClock "0:00:12"]

1. e4 {[%clk 0:03:00]}  c5 {[%clk 0:02:59]} 2. Nf3 {[%clk 0:02:59]}  Nc6 {[%clk 0:02:58]} 3. d4 {[%clk 0:02:58]}  cxd4 {[%clk 0:02:58]} 4. Nxd4 {[%clk 0:02:59]}  e6 {[%clk 0:02:55]} 5. Nc3 {[%clk 0:02:57]}  Qc7 {[%clk 0:02:52]} 6. a3 {[%clk 0:02:55]}  Nf6 {[%clk 0:02:49]} 7. Be3 {[%clk 0:02:45]}  a6 {[%clk 0:02:48]} 8. Be2 {[%clk 0:02:44]}  Be7 {[%clk 0:02:46]} 9. O-O {[%clk 0:02:42]}  O-O {[%clk 0:02:44]} 10. Kh1 {[%clk 0:02:40]}  d6 {[%clk 0:02:44]} 11. Nxc6 {[%clk 0:02:36]}  Qxc6 {[%clk 0:02:34]} 12. Bd3 {[%clk 0:02:35]}  b5 {[%clk 0:02:34]} 13. f4 {[%clk 0:02:33]}  Bb7 {[%clk 0:02:20]} 14. Qf3 {[%clk 0:02:17]}  Nd7 {[%clk 0:02:04]} 15. Qh3 {[%clk 0:02:11]}  Nc5 {[%clk 0:01:58]} 16. Bxc5 {[%clk 0:02:08]}  Qxc5 {[%clk 0:01:51]} 17. e5 {[%clk 0:02:01]}  h6 {[%clk 0:01:44]} 18. f5 {[%clk 0:01:42]}  exf5 {[%clk 0:01:17]} 19. exd6 {[%clk 0:01:26]}  Bxd6 {[%clk 0:01:09]} 20. Rxf5 {[%clk 0:01:25]}  Qc7 {[%clk 0:00:56]} 21. Nd5 {[%clk 0:01:18]}  Bxd5 {[%clk 0:00:55]} 22. Rxd5 {[%clk 0:01:19]}  Rae8 {[%clk 0:00:33]} 23. Rf1 {[%clk 0:01:09]}  Re5 {[%clk 0:00:31]} 24. Rxe5 {[%clk 0:01:03]}  Bxe5 {[%clk 0:00:31]} 25. Re1 {[%clk 0:01:01]}  Bxb2 {[%clk 0:00:30]} 26. Qf5 {[%clk 0:00:39]}  g6 {[%clk 0:00:30]} 27. Qh3 {[%clk 0:00:39]}  Kg7 {[%clk 0:00:30]} 28. Qh4 {[%clk 0:00:24]}  Bf6 {[%clk 0:00:28]} 29. Qe4 {[%clk 0:00:22]}  Qc3 {[%clk 0:00:28]} 30. Rf1 {[%clk 0:00:19]}  Rd8 {[%clk 0:00:24]} 31. a4 {[%clk 0:00:17]}  Rd4 {[%clk 0:00:16]} 32. Qb7 {[%clk 0:00:15]}  Rxa4 {[%clk 0:00:15]} 33. Be4 {[%clk 0:00:11]}  Qe5 {[%clk 0:00:15]} 34. Bd5 {[%clk 0:00:10]}  Qe7 {[%clk 0:00:13]} 35. Qc6 {[%clk 0:00:09]}  Rd4 {[%clk 0:00:11]} 36. Bb3 {[%clk 0:00:06]}  Qd6 {[%clk 0:00:11]} 37. Qe8 {[%clk 0:00:05]}  Qd7 {[%clk 0:00:10]} 38. Qe2 {[%clk 0:00:04]}  Rd2 {[%clk 0:00:10]} 39. Qf3 {[%clk 0:00:04]}  Qd6 {[%clk 0:00:08]} 40. h3 {[%clk 0:00:04]}  a5 {[%clk 0:00:08]} 41. Qb7 {[%clk 0:00:04]}  Qd7 {[%clk 0:00:09]} 42. Qe4 {[%clk 0:00:03]}  a4 {[%clk 0:00:09]} 43. Qf3 {[%clk 0:00:03]}  axb3 {[%clk 0:00:08]} 44. Qxf6+ {[%clk 0:00:02]}  Kg8 {[%clk 0:00:09]} 45. cxb3 {[%clk 0:00:03]}  Rd1 {[%clk 0:00:09]} 46. Rxd1 {[%clk 0:00:01]}  Qxd1+ {[%clk 0:00:10]} 47. Kh2 {[%clk 0:00:02]}  Qxb3 {[%clk 0:00:11]} 48. Qd8+ {[%clk 0:00:01]}  Kg7 {[%clk 0:00:11]} 49. Qd4+ {[%clk 0:00:02]}  Kh7 {[%clk 0:00:12]} 50. Qf6 {[%clk 0:00:02]}  Qc4 {[%clk 0:00:12]} 51. Qe7 {[%clk 0:00:01]}  b4 {[%clk 0:00:12]} 52. h4 {[%clk 0:00:02]}  h5 {[%clk 0:00:12]} 0-1


[Site "https://www.chess.com"]